bitfinex/quotes_ETHUSD_20251214
["timestamp","ask_amount","ask_price","bid_price","bid_amount"]
[1765697933613,0.001,3111.5,3111.4,34.71353064]
[1765697934433,0.4743,3111.5,3111.4,33.73643064]
[1765697934734,0.4743,3111.5,3111.4,29.39947386]
[1765697935731,0.001,3111.5,3111.4,33.73643064]
[1765697935908,0.001,3111.5,3111.4,34.68603064]
[1765697936432,0.001,3111.5,3111.4,13.95413864]
[1765697936618,0.001,3111.5,3111.4,34.68603064]
[1765697937533,0.001,3111.5,3111.4,13.95413864]
[1765697937718,0.001,3111.5,3111.4,34.68603064]
[1765697940535,0.001,3111.5,3111.4,13.95413864]
[1765697940721,0.001,3111.5,3111.4,34.68603064]
[1765697941537,0.001,3111.5,3111.4,13.95413864]
[1765697941743,0.001,3111.5,3111.4,34.68603064]
[1765697942536,0.001,3111.5,3111.4,13.95413864]
[1765697942841,0.001,3111.5,3111.4,34.68603064]
[1765697943019,0.001,3111.5,3111.4,30.34907386]
[1765697943216,0.001,3111.5,3111.4,29.88577386]
[1765697945337,0.001,3111.5,3111.4,29.39947386]
[1765697947641,0.001,3111.5,3111.4,8.66758186]
[1765697947823,0.001,3111.5,3111.4,29.39947386]
[1765697949213,0.4802,3111.5,3111.4,29.39947386]
[1765697950742,0.4802,3111.5,3111.4,8.66758186]
[1765697951038,0.4802,3111.5,3111.4,29.39947386]
[1765697952023,0.4802,3111.5,3111.4,28.99396986]
[1765697953658,0.4802,3111.5,3111.4,24.65701308]
[1765697959736,0.4802,3111.5,3111.4,28.99593062]
[1765697971271,0.4802,3111.5,3111.4,8.26403862]
[1765697971459,0.4802,3111.5,3111.4,28.99593062]
[1765697984068,0.4802,3111.5,3111.4,28.99581434]
[1765697987841,0.4802,3111.5,3111.4,24.65701308]
[1765697988047,0.4802,3111.5,3111.4,13.05212108]
[1765697988978,0.4802,3111.5,3111.4,24.65701308]
[1765697989178,0.4802,3111.5,3111.4,22.04112108]
[1765697989753,0.4802,3111.5,3111.4,28.99581434]
[1765697993982,0.001,3111.5,3111.4,29.48371434]
[1765697994552,0.001,3111.5,3111.4,29.48351623]
[1765697994975,0.001,3111.5,3111.4,29.96181623]
[1765697999460,0.001,3111.5,3111.4,29.48351623]
[1765698006395,0.001,3111.5,3111.4,8.75162423]
[1765698006609,0.001,3111.5,3111.4,29.48351623]
[1765698011501,0.001,3111.5,3111.4,8.75162423]
[1765698011701,0.001,3111.5,3111.4,28.99561623]
[1765698013305,0.0556,3111.5,3111.4,28.99561623]
[1765698021812,0.0556,3111.5,3111.4,8.26372423]
[1765698022012,0.0556,3111.5,3111.4,28.99561623]
[1765698026785,0.5071,3111.5,3111.4,28.99561623]
[1765698029097,0.5071,3111.5,3111.4,28.99603834]
[1765698029286,0.0556,3111.5,3111.4,28.99603834]
[1765698029487,0.5071,3111.5,3111.4,28.99603834]
[1765698031316,0.0556,3111.5,3111.4,28.99603834]
[1765698032992,0.0556,3111.5,3111.4,8.26414634]
[1765698033191,0.0556,3111.5,3111.4,28.99603834]
[1765698033621,0.001,3111.5,3111.4,29.45383834]
[1765698033919,0.001,3111.5,3111.4,34.2724636]
[1765698034092,0.001,3111.5,3111.4,29.45383834]
[1765698034819,0.001,3111.5,3111.4,29.93343834]
[1765698035620,0.001,3111.5,3111.4,34.2724636]
[1765698036821,0.001,3111.5,3111.4,29.93343834]
[1765698041922,0.001,3111.5,3111.4,34.2724636]
[1765698042113,0.001,3111.5,3111.4,33.7928636]
[1765698042414,0.001,3111.5,3111.4,29.45383834]
[1765698042615,0.001,3111.5,3111.4,34.2724636]
[1765698044219,0.001,3111.5,3111.4,13.5405716]
[1765698044391,0.001,3111.5,3111.4,34.2724636]
[1765698045225,0.001,3111.5,3111.4,13.5405716]
[1765698045530,0.001,3111.5,3111.4,34.2724636]
[1765698045932,0.001,3111.5,3111.4,29.93266313]
[1765698051340,0.001,3111.5,3111.4,9.20077113]
[1765698051517,0.001,3111.5,3111.4,29.93266313]
[1765698052348,0.001,3111.5,3111.4,9.20077113]
[1765698052558,0.001,3111.5,3111.4,29.93266313]
[1765698063333,0.001,3111.5,3111.4,29.93279608]
[1765698066157,0.001,3111.5,3111.4,29.45319608]
[1765698067050,0.001,3111.5,3111.4,28.99539608]
[1765698067257,0.4897,3111.5,3111.4,28.99539608]
[1765698069856,0.4897,3111.5,3111.4,8.26350408]
[1765698070163,0.4897,3111.5,3111.4,28.99539608]
[1765698070479,0.001,3111.5,3111.4,30.36120008]
[1765698070759,0.001,3111.5,3111.4,34.69958308]
[1765698087048,0.001,3111.5,3111.4,35.20558308]
[1765698098068,0.001,3111.5,3111.4,39.54266266]
[1765698099870,0.001,3111.5,3111.4,35.20297624]
[1765698106006,0.001,3111.5,3111.4,39.54015694]
[1765698106788,0.001,3111.5,3111.4,35.20317848]
[1765698113708,0.001,3111.5,3111.4,14.47128648]
[1765698113912,0.001,3111.5,3111.4,35.20317848]
[1765698118815,0.001,3111.5,3111.4,14.47128648]
[1765698119113,0.001,3111.5,3111.4,35.20317848]
[1765698122313,0.001,3111.5,3111.4,34.24287848]
[1765698122520,0.458,3111.5,3111.4,34.24287848]
[1765698123264,0.458,3111.5,3111.4,28.99419378]
[1765698123901,0.458,3111.5,3111.4,33.33137448]
[1765698127732,0.001,3111.5,3111.4,34.70587848]
[1765698132662,0.001,3111.5,3111.4,34.70548914]
[1765698132962,0.001,3111.5,3111.4,13.97359714]
[1765698133276,0.001,3111.5,3111.4,34.70548914]
[1765698139673,0.001,3111.5,3111.4,34.20808914]
[1765698139973,0.001,3111.5,3111.4,34.70548914]
[1765698141169,0.001,3111.5,3111.4,13.97359714]
[1765698141471,0.001,3111.5,3111.4,34.70548914]
[1765698142171,0.001,3111.5,3111.4,13.97359714]
[1765698142374,0.001,3111.5,3111.4,34.70548914]
[1765698144780,0.001,3111.5,3111.4,34.20808914]
[1765698145587,0.001,3111.5,3111.4,33.73648914]
[1765698146380,0.4914,3111.5,3111.4,33.73648914]
[1765698147379,0.4914,3111.5,3111.4,13.00459714]
[1765698147574,0.4914,3111.5,3111.4,33.73648914]
[1765698149378,0.4914,3111.5,3111.4,13.00459714]
[1765698149681,0.4914,3111.5,3111.4,33.73648914]
[1765698153400,0.001,3111.5,3111.4,33.73648914]
[1765698154366,0.001,3111.5,3111.4,34.20038914]
[1765698154570,0.001,3111.5,3111.4,34.65398914]
[1765698161994,0.001,3111.5,3111.4,34.20038914]
[1765698163800,0.001,3111.5,3111.4,34.65398914]
[1765698165696,0.001,3111.5,3111.4,13.92209714]
[1765698165903,0.001,3111.5,3111.4,38.99079271]
[1765698169292,0.001,3111.5,3111.4,34.6534858]
[1765698174892,0.001,3111.5,3111.4,13.9215938]
[1765698175090,0.001,3111.5,3111.4,34.6534858]
[1765698176408,0.001,3111.5,3111.4,34.1998858]
[1765698180016,0.001,3111.5,3111.4,13.4679938]
[1765698180221,0.001,3111.5,3111.4,34.1998858]
[1765698181013,0.001,3111.5,3111.4,13.4679938]
[1765698181219,0.001,3111.5,3111.4,34.1998858]
[1765698182416,0.001,3111.5,3111.4,33.7359858]
[1765698182720,0.4958,3111.5,3111.4,33.7359858]
[1765698183289,0.4958,3111.5,3111.4,34.2419858]
[1765698183489,0.001,3111.5,3111.4,34.2419858]
[1765698183901,0.001,3111.5,3111.4,34.7101858]
[1765698185522,0.001,3111.5,3111.4,35.1663858]
[1765698185820,0.001,3111.5,3111.4,34.7101858]
[1765698186422,0.001,3111.5,3111.4,34.2419858]
[1765698187820,0.4958,3111.5,3111.4,34.2419858]
[1765698195412,0.4958,3111.5,3111.4,33.8364818]
[1765698195608,0.4958,3111.5,3111.4,33.3304818]
[1765698198308,0.4958,3111.5,3111.4,12.5985898]
[1765698198519,0.4958,3111.5,3111.4,33.3304818]
[1765698201638,0.4958,3111.5,3111.4,33.33226618]
[1765698211542,0.4958,3111.5,3111.4,12.60037418]
[1765698211838,0.4958,3111.5,3111.4,33.33226618]
[1765698214148,0.001,3111.5,3111.4,33.80906618]
[1765698214316,0.001,3111.5,3111.4,34.30566618]
[1765698215038,0.001,3111.5,3111.4,33.80906618]
[1765698215234,0.001,3111.5,3111.4,33.33226618]
[1765698215440,0.4796,3111.5,3111.4,33.33226618]
[1765698224944,0.4796,3111.5,3111.4,12.60037418]
[1765698225149,0.4796,3111.5,3111.4,33.33226618]
[1765698225953,0.4796,3111.5,3111.4,16.93819815]
[1765698226248,0.4796,3111.5,3111.4,37.67009015]
[1765698230053,0.4796,3111.5,3111.4,16.93819815]
[1765698230350,0.4796,3111.5,3111.4,37.67009015]
[1765698232121,0.4796,3111.5,3111.4,16.93819815]
[1765698232322,0.4796,3111.5,3111.4,37.67009015]
[1765698237248,0.4796,3111.5,3111.4,16.93819815]
[1765698237453,0.4796,3111.5,3111.4,37.67009015]
[1765698238363,0.4796,3111.5,3111.4,16.93819815]
[1765698238548,0.4796,3111.5,3111.4,37.67009015]
[1765698239358,0.4796,3111.5,3111.4,16.93819815]
[1765698239568,0.4796,3111.5,3111.4,37.67009015]
[1765698245079,0.4796,3111.5,3111.4,33.33262954]
[1765698248576,0.4796,3111.5,3111.4,12.60073754]
[1765698248749,0.4796,3111.5,3111.4,33.33262954]
[1765698254053,0.001,3111.5,3111.4,34.29362954]
[1765698257579,0.001,3111.5,3111.4,33.33262954]
[1765698258281,0.001,3111.5,3111.4,33.81702954]
[1765698262782,0.001,3111.5,3111.4,13.08513754]
[1765698262987,0.001,3111.5,3111.4,33.81702954]
[1765698271388,0.001,3111.5,3111.4,38.15479115]
[1765698271588,0.001,3111.5,3111.4,37.67039115]
[1765698274463,0.001,3111.6,3111.4,34.2978363]
[1765698274791,0.001,3112.5,3111.8,20.731892]
[1765698274965,0.001,3112.5,3112.2,29.40741522]
[1765698275398,0.001,3112.5,3112.2,32.62057632]
[1765698275769,0.001,3112.5,3112.2,33.07667632]
[1765698276785,0.4935,3112.3,3112.2,33.07667632]
[1765698278396,0.001,3112.3,3112.2,33.07667632]
[1765698279289,0.001,3112.3,3112.2,12.34478432]
[1765698279594,0.001,3112.3,3112.2,34.12605161]
[1765698279991,0.001,3112.3,3112.2,33.65715161]
[1765698280179,0.4935,3112.3,3112.2,33.65715161]
[1765698288007,0.4935,3112.3,3112.2,29.31773577]
[1765698288375,0.4935,3112.3,3112.2,8.58584377]
[1765698288586,0.4935,3112.3,3112.2,39.31773577]
[1765698288808,0.4935,3112.3,3112.2,29.31773577]
[1765698290405,0.4935,3112.3,3112.2,8.58584377]
[1765698290607,0.4935,3112.3,3112.2,29.31773577]
[1765698304321,0.001,3112.3,3112.2,29.80913577]
[1765698304508,0.001,3112.3,3112.2,29.31773577]
[1765698304817,0.4645,3112.3,3112.2,29.31773577]
[1765698306230,0.4645,3112.3,3112.2,29.31805733]
[1765698318344,0.4645,3112.3,3112.2,8.58616533]
[1765698318508,0.4645,3112.3,3112.2,29.31805733]
[1765698323336,0.4645,3112.3,3112.2,8.58616533]
[1765698323543,0.4645,3112.3,3112.2,29.31805733]
[1765698325342,0.4645,3112.3,3112.2,28.86195733]
[1765698326442,0.4645,3112.3,3112.2,38.86195733]
[1765698326633,0.4645,3112.3,3112.2,28.86195733]
[1765698328447,0.4645,3112.3,3112.2,38.86195733]
[1765698328744,0.4645,3112.3,3112.2,28.86195733]
[1765698330443,0.4645,3112.3,3112.2,8.13006533]
[1765698330649,0.4645,3112.3,3112.2,28.86195733]
[1765698334551,0.4645,3112.3,3112.2,8.13006533]
[1765698334849,0.4645,3112.3,3112.2,28.86195733]
[1765698336649,0.4645,3112.3,3112.2,38.86195733]
[1765698336950,0.4645,3112.3,3112.2,28.86195733]
[1765698337620,0.001,3112.3,3112.2,39.32445733]
[1765698337821,0.001,3112.3,3112.2,29.78105733]
[1765698338224,0.001,3112.3,3112.2,29.45310095]
[1765698338521,0.001,3112.3,3112.2,29.90970095]
[1765698341162,0.001,3112.3,3112.2,29.90968587]
[1765698341654,0.001,3112.3,3112.2,9.17779387]
[1765698341856,0.001,3112.3,3112.2,29.90968587]
[1765698345374,0.001,3112.3,3112.2,29.45308587]
[1765698345728,0.001,3112.3,3112.2,8.72119387]
[1765698345930,0.001,3112.3,3112.2,39.45308587]
[1765698346227,0.001,3112.3,3112.2,29.45308587]
[1765698347853,0.001,3112.3,3112.2,25.11667201]
[1765698348069,0.001,3112.3,3112.2,29.45322865]
[1765698349357,0.001,3112.3,3112.2,28.99072865]
[1765698351865,0.001,3112.3,3112.2,8.25883665]
[1765698352058,0.001,3112.3,3112.2,28.99072865]
[1765698352862,0.001,3112.3,3112.2,8.25883665]
[1765698353049,0.001,3112.3,3112.2,28.99072865]
[1765698353964,0.001,3112.3,3112.2,8.25883665]
[1765698354138,0.001,3112.3,3112.2,28.99072865]
[1765698355980,0.001,3112.3,3112.2,8.25883665]
[1765698356167,0.001,3112.3,3112.2,28.99072865]
[1765698356467,0.4556,3112.3,3112.2,28.99072865]
[1765698358050,0.4556,3112.3,3112.2,8.25883665]
[1765698358251,0.4556,3112.3,3112.2,28.99072865]
[1765698359066,0.4556,3112.3,3112.2,8.25883665]
[1765698359369,0.4556,3112.3,3112.2,28.99072865]
[1765698360346,0.001,3112.3,3112.2,34.27568529]
[1765698365277,0.001,3112.3,3112.2,33.82268529]
[1765698366476,0.001,3112.3,3112.2,28.99072865]
[1765698366973,0.001,3112.3,3112.2,29.48612865]
[1765698367376,0.001,3112.3,3112.2,33.82268529]
[1765698367556,0.001,3112.3,3112.2,33.32728529]
[1765698369180,0.001,3112.3,3112.2,33.82268529]
[1765698370281,0.001,3112.3,3112.2,13.09079329]
[1765698370452,0.001,3112.3,3112.2,33.82268529]
[1765698371558,0.001,3112.3,3112.2,33.32728529]
[1765698371953,0.001,3112.3,3112.2,28.99072865]
[1765698373974,0.001,3112.3,3112.2,33.82268529]
[1765698375886,0.001,3112.3,3112.2,33.82220347]
[1765698381392,0.001,3112.3,3112.2,34.27520347]
[1765698382600,0.001,3112.3,3112.2,13.54331147]
[1765698382909,0.001,3112.3,3112.2,34.27520347]
[1765698387698,0.001,3112.3,3112.2,13.54331147]
[1765698387906,0.001,3112.3,3112.2,34.27520347]
[1765698391598,0.001,3112.3,3112.2,33.82220347]
[1765698392408,0.001,3112.3,3112.2,29.48588774]
[1765698395027,0.001,3112.3,3112.2,8.75399574]
[1765698395231,0.001,3112.3,3112.2,29.48588774]
[1765698396410,0.001,3112.3,3112.2,33.82220347]
[1765698399119,0.001,3112.3,3112.2,13.09031147]
[1765698399421,0.001,3112.3,3112.2,29.48588774]
[1765698402313,0.001,3112.3,3112.2,8.75399574]
[1765698402618,0.001,3112.3,3112.2,29.48588774]
[1765698405026,0.001,3112.3,3112.2,28.99048774]
[1765698406521,0.001,3112.3,3112.2,8.25859574]
[1765698406723,0.001,3112.3,3112.2,28.99048774]
[1765698409525,0.001,3112.3,3112.2,8.25859574]
[1765698409825,0.001,3112.3,3112.2,28.99048774]
[1765698410223,0.001,3112.3,3112.2,28.9906022]
[1765698413631,0.001,3112.3,3112.2,8.2587102]
[1765698413802,0.001,3112.3,3112.2,28.9906022]
[1765698417732,0.001,3112.3,3112.2,29.4713022]
[1765698420930,0.001,3112.3,3112.2,8.7394102]
[1765698421136,0.001,3112.3,3112.2,43.80773239]
[1765698421338,0.001,3112.3,3112.2,34.29113239]
[1765698422937,0.001,3112.3,3112.2,13.55924039]
[1765698423244,0.001,3112.3,3112.2,34.29113239]
[1765698433848,0.4644,3112.3,3112.2,28.9906022]
[1765698438348,0.4644,3112.3,3112.2,8.2587102]
[1765698438581,0.4644,3112.3,3112.2,28.9906022]
[1765698441654,0.4644,3112.3,3112.2,38.9906022]
[1765698441858,0.4644,3112.3,3112.2,28.9906022]
[1765698442530,0.001,3112.3,3112.2,28.9906022]
[1765698443136,0.001,3112.3,3112.2,33.80773239]
[1765698443333,0.001,3112.3,3112.2,34.29113239]
[1765698444862,0.001,3112.3,3112.2,34.28916805]
[1765698448566,0.001,3112.3,3112.2,13.55727605]
[1765698448736,0.001,3112.3,3112.2,34.28916805]
[1765698449561,0.001,3112.3,3112.2,13.55727605]
[1765698449768,0.001,3112.3,3112.2,34.28916805]
[1765698449939,0.001,3112.3,3112.2,29.95372003]
[1765698450662,0.001,3112.3,3112.2,29.47032003]
[1765698453674,0.001,3112.3,3112.2,39.47032003]
[1765698453866,0.001,3112.3,3112.2,29.47032003]
[1765698455669,0.001,3112.3,3112.2,8.73842803]
[1765698455970,0.001,3112.3,3112.2,29.47032003]
[1765698456771,0.001,3112.3,3112.2,8.73842803]
[1765698456945,0.001,3112.3,3112.2,29.47032003]
[1765698460881,0.001,3112.3,3112.2,39.47032003]
[1765698461101,0.001,3112.3,3112.2,29.47032003]
[1765698462877,0.001,3112.3,3112.2,39.47032003]
[1765698463078,0.001,3112.3,3112.2,29.47032003]
[1765698468063,0.0771,3112.3,3112.2,28.98962003]
[1765698468889,0.0771,3112.3,3112.2,8.25772803]
[1765698469084,0.0771,3112.3,3112.2,28.98962003]
[1765698469995,0.001,3112.3,3112.2,28.98962003]
[1765698471970,0.001,3112.3,3112.2,33.32619765]
[1765698477095,0.001,3112.3,3112.2,12.59430565]
[1765698477293,0.001,3112.3,3112.2,33.32619765]
[1765698479004,0.001,3112.3,3112.2,24.65417201]
[1765698479300,0.0811,3112.3,3112.2,33.32619765]
[1765698479500,0.0811,3112.3,3112.2,33.32641657]
[1765698479998,0.001,3112.3,3112.2,33.32641657]
[1765698480207,0.001,3112.3,3112.2,33.82551657]
[1765698481076,0.001,3112.3,3112.2,34.28681657]
[1765698491312,0.001,3112.3,3112.2,34.69232057]
[1765698492306,0.001,3112.3,3112.2,13.96042857]
[1765698492508,0.001,3112.3,3112.2,34.69232057]
[1765698495417,0.001,3112.3,3112.2,13.96042857]
[1765698495715,0.001,3112.3,3112.2,34.69232057]
[1765698497919,0.001,3112.6,3112.3,0.98597929]
[1765698498119,0.001,3112.8,3112.7,29.40413656]
[1765698498416,0.001,3112.8,3112.7,29.90323656]
[1765698498646,0.001,3112.8,3112.7,33.70578214]
[1765698499222,0.0556,3112.8,3112.7,28.91525986]
[1765698499421,0.546,3112.8,3112.7,28.91525986]
[1765698499827,0.0556,3112.8,3112.7,33.25138214]
[1765698500207,0.001,3112.8,3112.7,33.75048214]
[1765698500420,0.001,3112.8,3112.7,34.21178214]
[1765698500627,0.001,3112.8,3112.7,35.19776143]
[1765698500925,0.001,3112.9,3112.8,21.71787129]
[1765698501092,0.001,3112.9,3112.8,22.67827129]
[1765698501496,0.001,3112.9,3112.8,2.44117929]
[1765698501718,0.001,3112.9,3112.8,23.2051967]
[1765698501893,0.001,3112.9,3112.8,23.17307129]
[1765698502709,0.001,3113.6,3113.0,0.98597929]
[1765698502913,0.001,3113.6,3113.5,29.98461185]
[1765698503404,0.001,3113.6,3113.5,30.47941185]
[1765698503605,0.0556,3113.6,3113.5,9.74751985]
[1765698503814,0.0556,3113.6,3113.5,30.47941185]
[1765698504933,0.001,3113.6,3113.5,34.18033134]
[1765698505433,0.001,3113.6,3113.5,35.55783534]
[1765698506843,0.001,3113.6,3113.5,14.82594334]
[1765698507145,0.001,3113.6,3113.5,35.55783534]
[1765698511946,0.001,3113.6,3113.5,14.82594334]
[1765698512147,0.001,3113.6,3113.5,35.55783534]
[1765698513951,0.001,3113.6,3113.5,14.82594334]
[1765698514158,0.001,3113.6,3113.5,35.54651808]
[1765698515220,0.001,3114.2,3114.0,29.3928193]
[1765698515429,0.001,3114.2,3114.0,29.8988193]
[1765698515936,0.001,3114.2,3114.0,30.4678193]
[1765698516912,0.001,3114.2,3114.0,33.67912308]
[1765698520043,0.001,3114.2,3114.0,12.94723108]
[1765698520245,0.001,3114.2,3114.0,33.67912308]
[1765698521013,0.001,3114.2,3114.0,12.94723108]
[1765698521315,0.001,3114.2,3114.0,33.67912308]
[1765698522241,0.001,3114.2,3114.0,12.94723108]
[1765698522426,0.001,3114.2,3114.0,33.67912308]
[1765698523244,0.001,3114.2,3114.0,12.94723108]
[1765698523438,0.001,3114.2,3114.0,33.67912308]
[1765698523952,0.001,3114.2,3114.0,34.65982308]
[1765698524336,0.001,3114.2,3114.0,34.17902308]
[1765698525243,0.001,3114.2,3114.0,9.11666743]
[1765698525449,0.001,3114.2,3114.0,29.84855943]
[1765698525748,0.601,3114.2,3114.0,29.84855943]
[1765698525916,0.0773,3114.1,3114.0,29.34865943]
[1765698526118,0.5463,3114.1,3114.0,29.34865943]
[1765698526318,0.5463,3114.1,3114.0,24.51219578]
[1765698526547,0.5463,3114.1,3114.0,28.84265943]
[1765698527050,0.0773,3114.1,3114.0,28.84265943]
[1765698527245,0.5463,3114.1,3114.0,28.84265943]
[1765698528320,0.0773,3114.1,3114.0,28.84265943]
[1765698528524,0.5463,3114.1,3114.0,28.84265943]
[1765698529359,0.5463,3114.1,3114.0,38.84265943]
[1765698529647,0.5463,3114.1,3114.0,28.84265943]
[1765698531948,0.5463,3114.1,3114.0,24.51219578]
[1765698534352,0.0773,3114.1,3114.0,24.51219578]
[1765698535636,0.0773,3114.1,3114.0,34.51219578]
[1765698535840,0.5463,3114.1,3114.0,24.51219578]
[1765698536951,0.0773,3114.1,3114.0,24.51219578]
[1765698539551,0.0773,3114.1,3114.0,3.78030378]
[1765698539754,0.5463,3114.1,3114.0,24.51219578]
[1765698540773,0.0773,3114.1,3114.0,24.51219578]
[1765698541571,0.0773,3114.1,3114.0,3.78030378]
[1765698541872,0.0773,3114.1,3114.0,24.51219578]
[1765698542475,0.5463,3114.1,3114.0,24.51219578]
[1765698543702,0.5463,3114.1,3114.0,3.78030378]
[1765698543864,0.5463,3114.1,3114.0,24.51219578]
[1765698547174,0.0773,3114.1,3114.0,24.51219578]
[1765698547875,0.001,3114.1,3114.0,24.51219578]
[1765698548075,0.001,3114.1,3114.0,24.99319578]
[1765698548284,0.001,3114.1,3114.0,30.76247112]
[1765698548969,0.001,3114.1,3114.0,35.08931095]
[1765698553949,0.601,3114.2,3114.1,31.71787129]
[1765698554168,0.601,3114.2,3114.1,22.84277129]
[1765698554573,0.601,3114.2,3114.1,23.44377129]
[1765698554756,0.601,3114.2,3114.1,26.65497195]
[1765698557963,0.601,3114.2,3114.1,26.20337195]
[1765698558263,0.601,3114.2,3114.1,27.16097195]
[1765698558964,0.601,3114.2,3114.1,6.42907995]
[1765698559158,0.601,3114.2,3114.1,27.16097195]
[1765698559951,0.601,3114.2,3114.1,6.42907995]
[1765698560157,0.601,3114.2,3114.1,27.16097195]
[1765698561170,0.601,3114.2,3114.1,26.70937195]
[1765698561370,0.601,3114.2,3114.1,26.51707195]
[1765698563076,0.601,3114.2,3114.1,36.51707195]
[1765698563280,0.601,3114.2,3114.1,26.51707195]
[1765698563452,0.601,3114.2,3114.1,26.01107195]
[1765698563658,0.601,3114.2,3114.1,26.51707195]
[1765698564085,0.601,3114.2,3114.1,36.51707195]
[1765698564384,0.601,3114.2,3114.1,26.96867195]
[1765698566082,0.601,3114.2,3114.1,5.78517995]
[1765698566252,0.601,3114.2,3114.1,26.51707195]
[1765698566657,0.601,3114.2,3114.1,30.34707195]
[1765698567086,0.6556,3114.2,3114.1,8.62817995]
[1765698567295,0.6556,3114.2,3114.1,34.19533989]
[1765698571585,0.6556,3114.2,3114.1,30.36533989]
[1765698572361,0.601,3114.2,3114.1,30.36533989]
[1765698572562,0.66,3114.2,3114.1,30.36533989]
[1765698574458,0.66,3114.2,3114.1,29.85933989]
[1765698574662,0.66,3114.2,3114.1,30.36533989]
[1765698575167,0.601,3114.2,3114.1,9.63344789]
[1765698575396,0.601,3114.2,3114.1,30.36533989]
[1765698575793,0.6775,3114.2,3114.1,30.36533989]
[1765698577190,0.6775,3114.2,3114.1,26.03607195]
[1765698577394,0.601,3114.2,3114.1,26.49697195]
[1765698578298,0.601,3114.2,3114.1,30.82623989]
[1765698578706,0.601,3114.2,3114.1,26.49697195]
[1765698579606,1.1462,3114.2,3114.1,26.03607195]
[1765698580878,0.6775,3114.2,3114.1,26.03607195]
[1765698583407,0.601,3114.2,3114.1,30.82623989]
[1765698584414,0.601,3114.2,3114.1,31.29083989]
[1765698584894,0.601,3114.2,3114.1,35.62024641]
[1765698588412,0.601,3114.2,3114.1,14.88835441]
[1765698588616,0.601,3114.2,3114.1,35.62024641]
[1765698589318,1.2,3114.4,3114.1,38.83144707]
[1765698589613,1.2,3114.4,3114.3,21.77326729]
[1765698590117,1.2,3114.4,3114.3,22.23786729]
[1765698590519,1.2,3114.4,3114.3,23.20175832]
[1765698590901,0.001,3114.8,3114.6,0.98597929]
[1765698591102,0.001,3114.8,3114.7,37.01410852]
[1765698591287,0.001,3114.8,3114.7,27.01410852]
[1765698591492,0.001,3114.8,3114.7,30.47469059]
[1765698592018,0.001,3114.8,3114.7,35.26566398]
[1765698596217,0.001,3114.8,3114.7,34.80106398]
[1765698596518,0.0591,3114.8,3114.7,34.34016398]
[1765698598612,0.001,3114.8,3114.7,34.34016398]
[1765698599126,0.0594,3114.8,3114.7,34.34016398]
[1765698600134,0.0594,3114.8,3114.7,34.81696398]
[1765698600135,0.001,3114.8,3114.7,34.81696398]
[1765698600296,0.001,3114.8,3114.7,35.30536398]
[1765698601237,0.001,3114.8,3114.7,34.81696398]
[1765698601737,0.0591,3114.8,3114.7,34.34016398]
[1765698602713,0.001,3114.8,3114.7,34.81696398]
[1765698602917,0.001,3114.8,3114.7,35.30536398]
[1765698605334,0.25,3115.0,3114.9,31.137396]
[1765698605636,0.001,3115.3,3114.9,30.85038191]
[1765698605834,0.001,3115.3,3115.2,34.24334867]
[1765698606033,0.001,3115.3,3115.2,34.56644867]
[1765698606238,0.0591,3115.3,3115.2,34.08964867]
[1765698606732,0.0591,3115.3,3115.2,13.48625111]
[1765698606941,0.0591,3115.3,3115.2,34.21814311]
[1765698607118,0.5461,3115.3,3115.2,29.8902878]
[1765698608437,0.0591,3115.3,3115.2,34.21814311]
[1765698609041,0.001,3115.3,3115.2,34.69494311]
[1765698609911,0.001,3115.3,3115.2,35.18334311]
[1765698610248,0.001,3115.4,3115.3,21.71787129]
[1765698610538,0.001,3115.4,3115.3,22.68307129]
[1765698610939,0.001,3115.4,3115.3,33.17447129]
[1765698611262,0.001,3115.4,3115.3,23.17447129]
[1765698611924,0.001,3115.5,3115.4,21.71787129]
[1765698612146,0.001,3115.5,3115.4,31.33878191]
[1765698612338,0.0971,3116.1,3115.5,0.98597929]
[1765698612531,0.5885,3116.1,3116.0,25.6402226]
[1765698613043,0.6466,3116.1,3116.0,26.2287226]
[1765698613538,0.6422,3116.1,3116.0,26.2287226]
[1765698613942,0.6422,3116.1,3116.0,29.43796521]
[1765698617434,0.1552,3116.1,3116.0,29.43796521]
[1765698617632,0.6422,3116.1,3116.0,29.43796521]
[1765698617851,0.1552,3116.1,3116.0,29.43796521]
[1765698618044,0.5501,3116.1,3116.0,29.94396521]
[1765698619953,0.5501,3116.1,3116.0,29.94140164]
[1765698621056,0.5501,3116.1,3116.0,9.20950964]
[1765698621350,0.001,3116.1,3116.0,34.26669338]
[1765698621552,0.001,3116.1,3116.0,35.23189338]
[1765698622655,0.001,3116.1,3116.0,30.41820164]
[1765698622851,0.0591,3116.1,3116.0,29.94140164]
[1765698623333,0.0633,3116.1,3116.0,29.94140164]
[1765698623958,0.5461,3116.1,3116.0,29.94140164]
[1765698624969,0.0633,3116.1,3116.0,29.94140164]
[1765698625371,0.0633,3116.1,3116.0,29.43540164]
[1765698625670,0.5275,3116.1,3116.0,29.43540164]
[1765698627187,0.5275,3116.1,3116.0,25.1101099]
[1765698628033,0.0633,3116.1,3116.0,24.52963461]
[1765698628234,0.516,3116.1,3116.0,28.85492635]
[1765698631270,0.516,3116.1,3116.0,24.52963461]
[1765698631474,0.516,3116.1,3116.0,28.85492635]
[1765698632168,0.516,3116.1,3116.0,24.52963461]
[1765698632340,0.516,3116.1,3116.0,34.52963461]
[1765698632545,0.516,3116.1,3116.0,24.52963461]
[1765698633249,0.516,3116.1,3116.0,34.52963461]
[1765698633546,0.516,3116.1,3116.0,24.52963461]
[1765698639074,0.001,3116.1,3116.0,25.1101099]
[1765698639273,0.0973,3116.1,3116.0,4.3782179]